[Event "Baku Open 2024"]
[Site "Baku"]
[Date "2024.07.01"]
[Round "3.33"]
[White "Vantika Agrawal"]
[Black "Bizhigitov, Zhangir"]
[Result "1/2-1/2"]
[ECO "E11"]
[WhiteElo "2390"]
[BlackElo "2212"]
[Annotator "TA"]
[PlyCount "193"]
[EventDate "2024.06.29"]
[EventType "swiss"]
[EventCountry "AZE"]
[SourceTitle "playchess.com"]
[Source "ChessBase"]
[SourceQuality "1"]
[TimeControl "5400+30"]

{[%evp 91,193,0,0,0,0,-62,0,0,0,0,0,0,0,0,0,0,0,0,0,0,0,0,0,0,0,0,0,0,0,0,0,0,0,0,0,0,0,0,0,0,0,0,0,0,0,0,0,0,0,0,0,0,0,0,0,0,0,0,0,0,0,0,0,0,0,0,0,0,0,0,0,0,0,0,0,0,0,0,0,0,0,0,0,0,0,0,0,0,0,0,0,0,0,0,0,0,0,0,0,0,0,0,0,0]} 1. d4 {[%emt 0:00:09]} Nf6 {[%emt 0:00:37]} 2. c4 {[%emt 0:00:05]} e6 {[%emt 0:00:13]} 3. Nf3 {[%emt 0:00:06]} d5 {[%emt 0:00:25]} 4. g3 {[%emt 0:00:18]} Bb4+ {[%emt 0:01:26]} 5. Bd2 {[%emt 0:00:10]} Be7 {[%emt 0:00:58]} 6. Bg2 {[%emt 0:00:09]} O-O {[%emt 0:00:23]} 7. O-O {[%emt 0:00:20]} c6 {[%emt 0:00:27]} 8. Qc2 {[%emt 0:00:45]} Nbd7 {[%emt 0:00:42]} 9. h4 {[%emt 0:01:17] E11: Bogo-Indian.} h6 {[%emt 0:02:09]} 10. Bf4 {[%emt 0:05:26]} b6 $146 {[%emt 0:02:05]} ({Predecessor:} 10... Nh5 11. Bc1 Nhf6 12. Nbd2 b6 13. e4 Ba6 14. b3 Rc8 15. Rd1 c5 16. exd5 exd5 {0-1 Grischuk,A (2736)-Daneshvar,B (2577) FIDE World Cup 2023 (2.9)}) 11. Re1 {[%emt 0:24:32]} Bb7 {[%emt 0:07:56]} 12. Nbd2 {[%emt 0:09:28]} c5 {[%emt 0:07:21]} 13. dxc5 {[%emt 0:16:53]} Bxc5 {[%emt 0:11:11]} 14. Nb3 {[%emt 0:04:58]} Bb4 {[%emt 0:05:42]} 15. Bd2 {[%emt 0:05:54]} Bd6 {[%emt 0:11:29]} 16. cxd5 {[%emt 0:01:53]} Rc8 {[%emt 0:06:05]} 17. Bc3 {[%emt 0:01:04]} Nxd5 {[%emt 0:01:45]} 18. Qd2 {[%emt 0:09:13]} Nc5 {[%emt 0:06:19]} 19. Nxc5 {[%emt 0:03:16]} Bxc5 {[%emt 0:00:49]} 20. Red1 {[%emt 0:03:08]} Nxc3 {[%emt 0:05:57]} 21. Qxc3 {[%emt 0:00:54]} Qe7 {[%emt 0:00:37]} 22. Qe5 {[%emt 0:02:38]} Rfd8 {[%emt 0:01:16]} 23. Ne1 {[%emt 0:02:37]} Ba6 {[%emt 0:03:00]} 24. Bf1 {[%emt 0:02:37]} Bd6 {[%emt 0:03:12]} 25. Qe4 {[%emt 0:02:41]} Qf6 {[%emt 0:06:22]} 26. Nd3 {[%emt 0:02:17]} Bc4 {[%emt 0:03:56]} 27. Qf3 {[%emt 0:00:39]} Qe7 {[%emt 0:00:22]} 28. b3 {[%emt 0:00:20]} Bd5 {[%emt 0:02:23]} 29. Qe3 {[%emt 0:00:36]} e5 {[%emt 0:07:18]} 30. Rac1 {[%emt 0:00:34]} Rxc1 {[%emt 0:00:51]} 31. Qxc1 {[%emt 0:00:20]} Bb7 {[%emt 0:00:27]} 32. Bg2 {[%emt 0:00:33]} Ba3 {[%emt 0:01:04]} 33. Qc2 {[%emt 0:00:33]} e4 {[%emt 0:01:15]} 34. Nf4 {[%emt 0:00:21]} Rxd1+ {[%emt 0:00:21]} 35. Qxd1 {[%emt 0:00:02]} e3 {[%emt 0:00:16]} 36. Bxb7 {[%emt 0:00:36]} exf2+ {[%emt 0:00:04]} 37. Kxf2 {[%emt 0:00:10]} Bc5+ {[%emt 0:00:12]} 38. Kf3 {[%emt 0:00:41]} Qxb7+ {[%emt 0:00:06]} 39. e4 {[%emt 0:01:14]} Qe7 {[%emt 0:01:38]} 40. Qd5 {[%emt 0:00:23]} Bd6 {[%emt 0:01:04]} 41. Nd3 {[%emt 0:00:25]} Qf6+ {[%emt 0:00:28]} 42. Kg2 {[%emt 0:00:08]} Qg6 {[%emt 0:00:34]} 43. e5 {[%emt 0:00:11]} Bf8 {[%emt 0:00:07]} 44. a4 {[%emt 0:00:43]} Qf5 {[%emt 0:00:16]} 45. Nf4 {[%emt 0:01:07]} Qc2+ {[%emt 0:00:34]} 46. Kf3 {[%emt 0:00:33]} Qf5 {[%emt 0:00:45]} 47. g4 {[%emt 0:00:28]} Qb1 {[%emt 0:00:07]} 48. e6 {[%emt 0:00:32]} (48. h5 $11) 48... Qf1+ {[%emt 0:01:18]} ({Black should try} 48... Qh1+ $15 49. Kg3 Qxd5 50. Nxd5 fxe6) 49. Kg3 $1 $11 {[%emt 0:00:27]} Qe1+ {[%emt 0:00:28]} 50. Kg2 {[%emt 0:00:24]} fxe6 {[%emt 0:00:30]} 51. Qxe6+ {[%emt 0:00:26]} Qxe6 {[%emt 0:00:05]} 52. Nxe6 {[%emt 0:00:01]} Be7 {[%emt 0:00:30]} 53. h5 {[%emt 0:00:22]} Kf7 {[%emt 0:00:03]} 54. Nd4 {[%emt 0:00:59]} Bf6 {[%emt 0:01:06]} 55. Nb5 {[%emt 0:00:43]} a6 {[%emt 0:00:51]} 56. Nc7 {[%emt 0:00:08]} a5 {[%emt 0:00:04]} 57. Kf3 {[%emt 0:00:20]} Bd8 {[%emt 0:00:39]} 58. Nd5 {[%emt 0:00:40]} Ke6 {[%emt 0:00:38]} 59. Ke4 {[%emt 0:00:06]} Kd6 {[%emt 0:00:09]} 60. Kd4 {[%emt 0:01:12]} Bh4 {[%emt 0:00:24]} 61. Nf4 {[%emt 0:00:29]} (61. Nxb6 $2 {too greedy.} Bf2+ 62. Ke4 Bxb6 $19) 61... Bg3 {[%emt 0:00:44]} 62. Nd3 {[%emt 0:00:33]} Bh2 {[%emt 0:00:33]} 63. Kc4 {[%emt 0:00:37]} Kc6 {[%emt 0:00:42]} 64. Ne1 {[%emt 0:00:33]} Bg1 {[%emt 0:00:31]} 65. Nf3 {[%emt 0:00:05]} Be3 {[%emt 0:00:16]} 66. Kd3 {[%emt 0:00:41]} Bc1 {[%emt 0:00:39]} 67. Kd4 {[%emt 0:00:41]} Bb2+ {[%emt 0:00:36]} 68. Kc4 {[%emt 0:00:25]} Bf6 {[%emt 0:00:04]} 69. Ne1 {[%emt 0:00:38]} Bh4 {[%emt 0:00:37]} 70. Nd3 {[%emt 0:00:13]} Bf6 {[%emt 0:00:03]} 71. Nf4 {[%emt 0:00:28]} Bb2 {[%emt 0:00:26]} 72. Nd5 {[%emt 0:00:31]} Ba1 {[%emt 0:00:41]} 73. Ne7+ {[%emt 0:00:17]} Kd6 {[%emt 0:00:08]} 74. Nf5+ {[%emt 0:00:40]} Kc6 {[%emt 0:00:08]} 75. Ng3 {[%emt 0:00:42]} Bb2 {[%emt 0:00:28]} 76. Ne4 {[%emt 0:00:38]} Be5 {[%emt 0:00:43]} 77. Nf2 {[%emt 0:00:10]} Bb2 {[%emt 0:00:25]} 78. Nd3 {[%emt 0:00:25]} Bf6 {[%emt 0:00:22]} 79. b4 {[%emt 0:00:49]} axb4 {[%emt 0:00:08]} 80. Nxb4+ {[%emt 0:00:05]} Kd6 {[%emt 0:00:56]} 81. Nd5 {[%emt 0:00:49]} Kc6 {[%emt 0:00:39]} 82. Nxf6 {[%emt 0:00:32]} gxf6 {[%emt 0:00:01]} 83. Kb4 {[%emt 0:00:34]} (83. Kd4 $5 Kd6 $8 84. Ke4 $11) 83... Kb7 {[%emt 0:01:43]} 84. Kb3 {[%emt 0:00:27]} Ka6 {[%emt 0:00:41]} 85. Kb4 {[%emt 0:00:24]} (85. Kc4 $5 Ka5 $8 86. Kd5 (86. Kb3 b5 $11) 86... Kxa4 87. Ke6 $11) 85... Kb7 {[%emt 0:00:03]} 86. Kc4 {[%emt 0:00:29]} (86. Kb5 $5) 86... Kc6 {[%emt 0:00:04]} 87. Kd4 $1 {[%emt 0:00:05]} Kd6 {[%emt 0:00:03]} 88. Ke4 {[%emt 0:00:04]} Ke6 {[%emt 0:00:02]} 89. Kf4 {[%emt 0:00:07]} Ke7 $1 {[%emt 0:00:17]} 90. Ke3 {[%emt 0:00:09]} Ke6 {[%emt 0:00:41]} 91. Ke4 {[%emt 0:00:07]} (91. Kf4 $5) 91... Ke7 {[%emt 0:00:02]} 92. Kd5 {[%emt 0:02:05]} Kd7 {[%emt 0:00:05]} 93. Kc4 {[%emt 0:00:08]} Kc6 {[%emt 0:00:03]} 94. Kb4 {[%emt 0:00:12]} (94. Kd4 $5 Kd6 $8 95. Ke4 $11) 94... Kb7 {[%emt 0:00:06]} 95. Kb3 {[%emt 0:00:14]} Ka6 {[%emt 0:00:32]} 96. Kb4 {[%emt 0:00:34]} (96. Kc4 $5 Ka5 $8 97. Kd5 (97. Kb3 b5 $11) 97... Kxa4 98. Ke6 $11) 96... Kb7 {[%emt 0:00:05]} 97. Kc4 {[%emt 0:00:48]} (97. Kb5 $5) 1/2-1/2

[Event "Baku Open 2024"]
[Site "Baku"]
[Date "2024.07.01"]
[Round "3.34"]
[White "Aslanov, Umid"]
[Black "Talibov, Shiroghlan"]
[Result "0-1"]
[ECO "B87"]
[WhiteElo "2216"]
[BlackElo "2361"]
[Annotator "TA"]
[PlyCount "114"]
[EventDate "2024.06.29"]
[EventType "swiss"]
[EventCountry "AZE"]
[SourceTitle "playchess.com"]
[Source "ChessBase"]
[SourceQuality "1"]
[TimeControl "5400+30"]

{[%evp 25,114,-23,-14,-20,-3,-35,-20,-41,-47,-52,-44,-56,-54,-87,-80,-77,-65,-54,-43,-76,-63,-66,-67,-66,-75,-101,-92,-75,-65,-68,-72,-66,-50,-40,-39,-104,-71,-108,-106,-109,-93,-92,-102,-144,-131,-179,0,-208,-206,-367,-361,-369,-352,-345,-291,-500,-498,-563,-556,-846,-838,-697,-697,-2528,-697,-1428,-1284,-1179,-914,-936,-895,-1329,-1329,-2406,-706,-2290,-473,-469,-467,-1295,-1249,-1135,-1038,-1782,-1271,-1666,-1634,-1821,-1656,-1203,-1160]} 1. e4 {[%emt 0:00:03]} c5 {[%emt 0:00:07]} 2. Nf3 {[%emt 0:00:08]} Nc6 {[%emt 0:00:05]} 3. d4 {[%emt 0:00:06]} cxd4 {[%emt 0:00:04]} 4. Nxd4 {[%emt 0:00:05]} Nf6 {[%emt 0:00:04]} 5. Nc3 {[%emt 0:00:07]} d6 {[%emt 0:00:03]} 6. Bc4 {[%emt 0:00:35]} e6 {[%emt 0:00:38]} 7. Be3 {[%emt 0:00:21]} a6 {[%emt 0:01:18]} 8. Qe2 {[%emt 0:01:45]} Bd7 {[%emt 0:00:19]} 9. Bb3 {[%emt 0:00:14]} b5 {[%emt 0:01:44]} 10. Nxc6 {[%emt 0:17:54]} Bxc6 {[%emt 0:00:25]} 11. f3 {[%emt 0:00:06]} Be7 {[%emt 0:05:42]} 12. a3 {[%emt 0:04:36]} Qc7 {[%emt 0:01:29]} 13. O-O {[%emt 0:01:33]} O-O {[%emt 0:00:45]} 14. Bd4 {[%emt 0:02:30]} Qb7 {[%emt 0:07:04]} 15. Rad1 {[%emt 0:15:49]} a5 {[%emt 0:16:08]} 16. e5 {[%emt 0:04:31] The position is equal.} dxe5 {[%emt 0:00:21]} 17. Qxe5 {[%emt 0:00:24]} Rfd8 {[%emt 0:07:16]} 18. Ne2 {[%emt 0:06:54]} Bd5 {[%emt 0:02:12]} 19. Qe3 {[%emt 0:09:31]} Bxb3 {[%emt 0:06:49]} 20. Qxb3 {[%emt 0:00:06]} Rd7 {[%emt 0:00:26]} 21. c3 {[%emt 0:02:32]} Rad8 {[%emt 0:03:02]} 22. Nf4 {[%emt 0:01:52]} a4 {[%emt 0:09:32]} 23. Qc2 {[%emt 0:00:15]} Qc7 {[%emt 0:01:35]} 24. Bxf6 {[%emt 0:08:46]} gxf6 {[%emt 0:00:35]} (24... Bxf6 {simplifies} 25. Rxd7 Qxd7 26. Re1 Bg5) 25. Ne2 {[%emt 0:01:24]} Bc5+ {[%emt 0:07:24]} 26. Kh1 {[%emt 0:00:13]} f5 {[%emt 0:05:04]} 27. Qc1 $1 {[%emt 0:03:22] Repels Be3} Kh8 {[%emt 0:04:47]} 28. c4 {[%emt 0:06:27]} b4 {[%emt 0:07:53]} 29. axb4 {[%emt 0:00:16]} Bxb4 {[%emt 0:00:01]} 30. Ng3 {[%emt 0:01:24]} (30. Rxd7 $15 Qxd7 (30... Rxd7 31. Rd1 $15) 31. Nc3) 30... Bd2 {[%emt 0:05:38] Black is much more active.} 31. Qc2 {[%emt 0:03:38]} Rd4 {[%emt 0:00:04]} 32. c5 {[%emt 0:03:00]} R8d5 {[%emt 0:02:33]} 33. c6 {[%emt 0:00:03]} Rd6 {[%emt 0:03:08]} 34. Qc5 {[%emt 0:00:14]} R4d5 $1 $36 {[%emt 0:00:53][%mdl 2048] Keeping White busy.} (34... Qxc6 $6 35. Qe5+ Kg8 36. Nh5 $11) 35. Qc4 {[%emt 0:00:14]} (35. Qa3 $17) 35... Rd4 $2 {[%emt 0:00:40]} ({Don't take} 35... Rxc6 36. Qh4 Qd8 37. Qxa4 $15) (35... Qxc6 $19 36. Qe2 Bf4) 36. Qb5 {[%emt 0:02:25]} (36. Qc5 $1 $11 {and White has nothing to worry.}) 36... Rxc6 $19 {[%emt 0:01:13]} ({Weaker is} 36... Qxc6 37. Qe5+ Kg8 38. Nh5 $11) 37. Ne2 $2 {[%emt 0:00:05]} (37. Nh5) 37... Rb4 {[%emt 0:00:49]} 38. Qd3 {[%emt 0:00:04]} Rd6 {[%emt 0:00:19]} 39. Qa3 {[%emt 0:00:01][%cal Od1d2] [#] Black must now prevent Rxd2!} Qc4 {[%emt 0:00:34]} 40. Nc1 {[%emt 0:01:21]} (40. Nc3) 40... Qc2 {[%emt 0:00:44] White is weak on the dark squares. Black is clearly winning.} 41. b3 {[%emt 0:01:57]} axb3 {[%emt 0:00:02]} 42. Qa5 {[%emt 0:00:12]} Rd5 {[%emt 0:00:33]} 43. Qa7 {[%emt 0:00:23]} Kg7 {[%emt 0:00:41]} 44. Ne2 {[%emt 0:02:20]} f4 {[%emt 0:00:39]} (44... Be3 $142 45. Nd4 Bxd4 (45... Rbxd4 $2 46. Rde1 $19)) 45. Qe7 {[%emt 0:00:31]} b2 {[%emt 0:00:31]} 46. Rb1 {[%emt 0:00:01]} Qc5 {[%emt 0:00:24]} 47. Qh4 {[%emt 0:00:15]} Rh5 {[%emt 0:00:14]} 48. Qd8 {[%emt 0:00:28]} Be3 {[%emt 0:00:26][%cal Oh5h2] [#] ( -> ...Rxh2+!)} 49. g3 {[%emt 0:00:19]} Qd5 {[%emt 0:01:22]} (49... fxg3 $142 50. Nxg3 Rd5) 50. Qc7 {[%emt 0:00:38]} Qe5 {[%emt 0:00:23]} (50... Qd2 $142 51. Rfe1 fxg3 (51... Rc5 $2 52. Qe7 $19) 52. Qxg3+ Rg5) 51. Qxe5+ {[%emt 0:01:55]} Rxe5 {[%emt 0:00:01]} 52. gxf4 {[%emt 0:00:08]} (52. Nxf4 $142 Bxf4 53. gxf4) 52... Rc5 {[%emt 0:00:06]} ({Not} 52... Bxf4 53. Nxf4 Rxf4 54. Rxb2 $17) 53. Ng3 {[%emt 0:00:34]} Bxf4 {[%emt 0:00:37]} 54. Ne4 {[%emt 0:00:33]} Rc2 {[%emt 0:00:13]} 55. Rg1+ {[%emt 0:00:12]} Kf8 {[%emt 0:00:07]} 56. Rg2 {[%emt 0:00:03]} Rc1+ {[%emt 0:00:10]} 57. Rg1 {[%emt 0:00:02]} Be3 {[%emt 0:00:06] Weighted Error Value: White=0.85/Black=0.37.  Loses game:     	White=1     	---        Missed win:     	---       	Black=1      Mistake:       	White=5     	---        Inaccurate:     	White=7     	Black=1      OK:         	White=11    	Black=12     Best:        	White=1     	Black=4      Strong:       	White=1     	---} 0-1

[Event "Baku Open 2024"]
[Site "Baku"]
[Date "2024.07.01"]
[Round "3.35"]
[White "Vrashank Chouhan"]
[Black "Kamalidenova, Meruert"]
[Result "1/2-1/2"]
[ECO "B13"]
[WhiteElo "2209"]
[BlackElo "2360"]
[Annotator "RC"]
[PlyCount "146"]
[EventDate "2024.06.29"]
[EventType "swiss"]
[EventCountry "AZE"]
[SourceTitle "playchess.com"]
[Source "ChessBase"]
[SourceQuality "1"]
[TimeControl "5400+30"]

1. d4 {[%emt 0:00:02]} d5 {[%emt 0:00:05]} 2. Bf4 {[%emt 0:00:33]} c5 {[%emt 0:00:07]} 3. e3 {[%emt 0:00:06]} Nc6 {[%emt 0:00:07]} 4. Nf3 {[%emt 0:00:09]} cxd4 {[%emt 0:00:06]} 5. exd4 {[%emt 0:00:06]} Bf5 {[%emt 0:00:07]} 6. Bb5 {[%emt 0:04:48]} e6 {[%emt 0:02:14]} 7. O-O {[%emt 0:02:36]} Nge7 {[%emt 0:02:52]} 8. Ne5 {[%emt 0:09:52]} f6 {[%emt 0:01:48]} 9. Nxc6 {[%emt 0:00:28]} bxc6 {[%emt 0:02:51]} 10. Bd3 {[%emt 0:00:05]} Qb6 {[%emt 0:09:03]} 11. Bxf5 {[%emt 0:23:53]} Nxf5 {[%emt 0:00:18]} 12. c3 {[%emt 0:00:50]} Qxb2 {[%emt 0:02:06]} 13. Nd2 {[%emt 0:00:06]} Qxc3 {[%emt 0:06:53]} 14. Re1 {[%emt 0:15:29]} Kf7 {[%emt 0:08:31]} 15. Nb3 {[%emt 0:07:10]} Ba3 {[%emt 0:07:07]} 16. g4 {[%emt 0:14:15]} Nh4 {[%emt 0:05:55]} 17. Re3 {[%emt 0:00:23]} Qb4 {[%emt 0:01:00]} 18. Bg3 {[%emt 0:01:37]} Ng6 {[%emt 0:02:01]} 19. Nc5 {[%emt 0:05:53]} Qa5 {[%emt 0:02:25]} 20. Nxe6 {[%emt 0:00:20]} Rhe8 {[%emt 0:00:33]} 21. Qc2 {[%emt 0:02:35]} Rac8 {[%emt 0:02:36]} 22. Rae1 {[%emt 0:01:49]} Kg8 {[%emt 0:42:45]} 23. Nc7 {[%emt 0:03:58]} Rxe3 {[%emt 0:00:00]} 24. Rxe3 {[%emt 0:00:04]} Rxc7 {[%emt 0:00:00]} 25. Bxc7 {[%emt 0:00:06]} Qxc7 {[%emt 0:00:00]} 26. Rxa3 {[%emt 0:00:12]} Qf4 {[%emt 0:00:00]} 27. Qd1 {[%emt 0:02:44]} Nh4 {[%emt 0:00:00]} 28. Rh3 {[%emt 0:04:21]} g5 {[%emt 0:00:00]} 29. Re3 {[%emt 0:00:00]} h5 {[%emt 0:00:00]} 30. h3 {[%emt 0:00:00]} Kg7 {[%emt 0:00:00]} 31. a4 {[%emt 0:00:34]} a5 {[%emt 0:00:00]} 32. Re7+ {[%emt 0:00:32]} Kf8 {[%emt 0:00:00]} 33. Re3 {[%emt 0:00:28]} Kg7 {[%emt 0:00:00]} 34. Re7+ {[%emt 0:00:37]} Kf8 {[%emt 0:00:00]} 35. Re3 {[%emt 0:00:02]} Kg7 {[%emt 0:00:00]} 36. gxh5 {[%emt 0:01:03]} Nf5 {[%emt 0:00:00]} 37. Rd3 {[%emt 0:00:42]} Qe4 {[%emt 0:00:00]} 38. f3 {[%emt 0:00:27]} Qf4 {[%emt 0:00:00]} 39. Qd2 {[%emt 0:00:25]} Qg3+ {[%emt 0:00:00]} 40. Qg2 {[%emt 0:00:05]} Qe1+ {[%emt 0:00:00]} 41. Qf1 {[%emt 0:00:22]} Qg3+ {[%emt 0:00:00]} 42. Qg2 {[%emt 0:00:16]} Qe1+ {[%emt 0:00:00]} 43. Qf1 {[%emt 0:00:19]} Qg3+ {[%emt 0:00:00]} 44. Qg2 {[%emt 0:00:06]} Qh4 {[%emt 0:00:00]} 45. Kh2 {[%emt 0:01:37]} Qf4+ {[%emt 0:00:00]} 46. Kg1 {[%emt 0:00:23]} Nxd4 {[%emt 0:00:00]} 47. Qf2 {[%emt 0:00:50]} c5 {[%emt 0:00:00]} 48. Kg2 {[%emt 0:00:05]} Kh6 {[%emt 0:00:00]} 49. Qd2 {[%emt 0:00:55]} Qf5 {[%emt 0:00:00]} 50. h4 {[%emt 0:00:38]} Ne6 {[%emt 0:00:00]} 51. hxg5+ {[%emt 0:00:16]} fxg5 {[%emt 0:00:00]} 52. Kf2 {[%emt 0:00:25]} d4 {[%emt 0:00:00]} 53. Rb3 {[%emt 0:00:31]} Nf4 {[%emt 0:00:00]} 54. Rb6+ {[%emt 0:00:08]} Kxh5 {[%emt 0:00:00]} 55. Qd1 {[%emt 0:00:41]} Qh3 {[%emt 0:00:00]} 56. Qg1 {[%emt 0:00:02]} Qh4+ {[%emt 0:00:00]} 57. Kf1 {[%emt 0:00:21]} d3 {[%emt 0:00:00]} 58. Qe3 {[%emt 0:01:35]} Qh3+ {[%emt 0:00:00]} 59. Kf2 {[%emt 0:00:03]} Qg2+ {[%emt 0:00:00]} 60. Ke1 {[%emt 0:00:02]} Qh1+ {[%emt 0:00:00]} 61. Kf2 {[%emt 0:01:17]} Qh2+ {[%emt 0:00:00]} 62. Kf1 {[%emt 0:00:09]} Qg2+ {[%emt 0:00:41]} 63. Ke1 {[%emt 0:00:04]} d2+ {[%emt 0:01:00]} 64. Kd1 {[%emt 0:00:03]} Kh4 {[%emt 0:00:09]} 65. Rd6 {[%emt 0:01:54]} Kg3 {[%emt 0:01:53]} 66. Rxd2 {[%emt 0:00:27]} Qxf3+ {[%emt 0:00:08]} 67. Qxf3+ {[%emt 0:00:04]} Kxf3 {[%emt 0:00:04]} 68. Rc2 {[%emt 0:00:04]} Ne6 {[%emt 0:01:21]} 69. Re2 {[%emt 0:00:05]} Nf4 {[%emt 0:06:11]} 70. Re5 {[%emt 0:00:09]} g4 {[%emt 0:01:57]} 71. Rxc5 {[%emt 0:00:04]} g3 {[%emt 0:00:22]} 72. Rxa5 {[%emt 0:01:59]} Nd3 {[%emt 0:00:49]} 73. Rg5 {[%emt 0:00:38]} Nb2+ {[%emt 0:00:10]} 1/2-1/2

[Event "Baku Open 2024"]
[Site "Baku"]
[Date "2024.07.01"]
[Round "3.36"]
[White "Aliyev, Ravan"]
[Black "Ismayil, Malak"]
[Result "1/2-1/2"]
[ECO "D06"]
[WhiteElo "2352"]
[BlackElo "2165"]
[Annotator "RC"]
[PlyCount "93"]
[EventDate "2024.06.29"]
[EventType "swiss"]
[EventCountry "AZE"]
[SourceTitle "playchess.com"]
[Source "ChessBase"]
[SourceQuality "1"]
[TimeControl "5400+30"]

1. d4 {[%emt 0:01:50]} d5 {[%emt 0:00:03]} 2. c4 {[%emt 0:00:24]} c5 {[%emt 0:01:23]} 3. cxd5 {[%emt 0:02:17]} Qxd5 {[%emt 0:00:27]} 4. Nf3 {[%emt 0:00:09]} cxd4 {[%emt 0:00:13]} 5. Nc3 {[%emt 0:00:06]} Qa5 {[%emt 0:00:03]} 6. Nxd4 {[%emt 0:00:09]} Nf6 {[%emt 0:01:17]} 7. g3 {[%emt 0:03:52]} e5 {[%emt 0:00:18]} 8. Nb3 {[%emt 0:00:21]} Qc7 {[%emt 0:00:04]} 9. Bg2 {[%emt 0:00:11]} Bb4 {[%emt 0:00:21]} 10. O-O {[%emt 0:07:23]} Bxc3 {[%emt 0:00:03]} 11. bxc3 {[%emt 0:00:06]} O-O {[%emt 0:00:03]} 12. Bg5 {[%emt 0:02:09]} Nbd7 {[%emt 0:00:46]} 13. Qc2 {[%emt 0:20:05]} h6 {[%emt 0:00:26]} 14. Bxf6 {[%emt 0:03:48]} Nxf6 {[%emt 0:00:04]} 15. c4 {[%emt 0:00:06]} Be6 {[%emt 0:00:56]} 16. Rfc1 {[%emt 0:03:46]} Rac8 {[%emt 0:02:55]} 17. c5 {[%emt 0:01:20]} Rfd8 {[%emt 0:02:26]} 18. Qb2 {[%emt 0:10:11]} Bd5 {[%emt 0:03:56]} 19. Bxd5 {[%emt 0:01:20]} Rxd5 {[%emt 0:00:54]} 20. Qa3 {[%emt 0:01:11]} a6 {[%emt 0:01:24]} 21. c6 {[%emt 0:08:57]} Ra8 {[%emt 0:03:14]} 22. cxb7 {[%emt 0:08:47]} Qxb7 {[%emt 0:00:04]} 23. Na5 {[%emt 0:07:36]} Qd7 {[%emt 0:03:38]} 24. Nc4 {[%emt 0:01:13]} Rb5 {[%emt 0:03:07]} 25. Rab1 {[%emt 0:05:16]} Rxb1 {[%emt 0:05:24]} 26. Rxb1 {[%emt 0:00:02]} Qc7 {[%emt 0:01:30]} 27. Nd6 {[%emt 0:04:53]} Rd8 {[%emt 0:01:12]} 28. Nf5 {[%emt 0:01:56]} Qc2 {[%emt 0:03:13]} 29. Ne7+ {[%emt 0:00:01]} Kh7 {[%emt 0:00:13]} 30. Qb3 {[%emt 0:03:23]} Rd2 {[%emt 0:00:46]} 31. Qxc2+ {[%emt 0:00:44]} Rxc2 {[%emt 0:00:03]} 32. Kf1 {[%emt 0:00:08]} Rxa2 {[%emt 0:00:05]} 33. Rb7 {[%emt 0:00:34]} Rd2 {[%emt 0:00:51]} 34. Nc6 {[%emt 0:00:29]} Rd7 {[%emt 0:01:13]} 35. Rb6 {[%emt 0:02:03]} Rd6 {[%emt 0:01:15]} 36. Rxa6 {[%emt 0:00:06]} Ne4 {[%emt 0:00:40]} 37. Nb4 {[%emt 0:00:37]} Rxa6 {[%emt 0:00:42]} 38. Nxa6 {[%emt 0:02:01]} Nd6 {[%emt 0:01:03]} 39. f3 {[%emt 0:00:00]} f6 {[%emt 0:00:19]} 40. Kf2 {[%emt 0:00:00]} Nc4 {[%emt 0:00:30]} 41. g4 {[%emt 0:00:00]} Kg6 {[%emt 0:00:16]} 42. Nc5 {[%emt 0:00:04]} h5 {[%emt 0:00:43]} 43. e4 {[%emt 0:01:16]} Kh6 {[%emt 0:01:37]} 44. h4 {[%emt 0:00:55]} g5 {[%emt 0:01:43]} 45. Kg3 {[%emt 0:00:14]} hxg4 {[%emt 0:00:19]} 46. Kxg4 {[%emt 0:00:16]} gxh4 {[%emt 0:00:03]} 47. Kxh4 {[%emt 0:00:05]} 1/2-1/2